Cogmind - Beta 16.1 @@@ ROGUE MODE // 2026.04.14 @ 14:13:47 Player: Lyft Result: Destroyed by L-41 Fighter with Axe Performance ------------- Evolutions (4) 2000 Regions Visited (9) 1800 Robots Destroyed (99) 495 Value Destroyed (2707) 2707 Prototype IDs (41) 820 Alien Tech Used (0) 0 Bonus (300) 300 TOTAL SCORE: 8122 Bonus ------- Aligned with FarCom 300 Cogmind --------- Core Integrity 0/850 Matter 156/300 Energy 100/100 System Corruption 10% Temperature Cool (0) Movement Core (700) Ox13 Location -6/Factory Parts ------- > --- POWER (1) -------- (None) > --- PROPULSION (4) --- (None) > --- UTILITY (8) ------ High-capacity Storage Unit > --- WEAPON (2) ------- (None) > --- INVENTORY (20) --- Micro Nuclear Core Improved Heat Sink Enhanced Optical Array Experimental Sensor Array Modified TNC Improved Light Armor Plating Authchip [Power] Authchip [Propulsion] Authchip [Propulsion] Heavy Machine Gun Hypervelocity Railgun Hypervelocity Railgun Precision Rocket Launcher Improved Datajack Peak State ------------ > --- POWER ------------ Cooled Ion Engine > --- PROPULSION ------- Gravmag Array Antigrav Array > --- UTILITY ---------- High-capacity Storage Unit IFF Parser Hardened Medium Armor Plating Hardened Medium Armor Plating Hardened Medium Armor Plating Hacking Suite Hacking Suite System Shield > --- WEAPON ----------- Heavy Machine Gun Impact Mace > --- INVENTORY -------- Micro Nuclear Core Enhanced Optical Array Experimental Sensor Array Modified TNC Improved Light Armor Plating Authchip [Power] Authchip [Propulsion] Authchip [Propulsion] Heavy Machine Gun Heavy Machine Gun Heavy Machine Gun Hypervelocity Railgun Hypervelocity Railgun Precision Rocket Launcher Improved Datajack Heavy Hammer [Rating: 71] Favorites ----------- Power Cooled Ion Engine Engine Cooled Ion Engine Power Core Micro Nuclear Core Propulsion Advanced Treads Treads Advanced Treads Leg Carbon-fiber Leg Wheel Compact Wheel Hover Unit Antigrav Array Flight Unit Improved Flight Unit Utility Improved Heat Sink Device Improved Heat Sink Storage High-capacity Storage Unit Hackware Hacking Suite Protection Improved Light Armor Plating Weapon Precision Beam Rifle Energy Gun Precision Beam Rifle Ballistic Gun Assault Rifle Ballistic Cannon Improved Light Cannon Launcher Grenade Launcher Special Weapon Mining Laser Impact Weapon Heavy Hammer Build | -11 -10 -10 -10 -9 -8 -8 -8 -8 -6 ------- Run | Yrd Mat Min Exi Min Mat Sto Rec Scr Fac Slots Evolved 8 | . . . . . 4 . . . 4 Power . | . . . . . . . . . . Propulsion 2 | . . . . . 1 . . . 1 Utility 6 | . . . . . 3 . . . 3 Weapon . | . . . . . . . . . . Parts Attached 89 | 3 2 2 2 6 34 13 1 2 24 Power 9 | . 1 . . 2 4 1 . . 1 Engine 7 | . 1 . . 1 3 1 . . 1 Core 2 | . . . . 1 1 . . . . Reactor . | . . . . . . . . . . Propulsion 24 | 2 . . . 1 13 2 1 1 4 Treads 15 | 1 . . . 1 9 1 1 1 1 Leg 3 | . . . . . 3 . . . . Wheel 1 | 1 . . . . . . . . . Hover 3 | . . . . . . 1 . . 2 Flight 2 | . . . . . 1 . . . 1 Utility 28 | 1 1 . 2 1 6 4 . . 13 Device 13 | 1 . . . 1 3 3 . . 5 Storage 3 | . 1 . 2 . . . . . . Processor . | . . . . . . . . . . Hackware 4 | . . . . . 1 . . . 3 Protection 8 | . . . . . 2 1 . . 5 Artifact . | . . . . . . . . . . Weapon 28 | . . 2 . 2 11 6 . 1 6 Energy Gun 10 | . . . . 1 7 1 . . 1 Energy Cannon . | . . . . . . . . . . Ballistic Gun 8 | . . . . 1 1 2 . . 4 Ballistic Cannon 2 | . . . . . 2 . . . . Launcher 4 | . . 2 . . . 2 . . . Special Weapon 2 | . . . . . 1 1 . . . Impact Weapon 2 | . . . . . . . . 1 1 Slashing Weapon . | . . . . . . . . . . Piercing Weapon . | . . . . . . . . . . Special Melee Weapon . | . . . . . . . . . . Unidentified Prototypes 16 | . . . . . 7 6 . . 3 Parts Lost 38 | . . 1 . . 17 2 . . 18 Power 3 | . . . . . 1 1 . . 1 Propulsion 12 | . . . . . 6 . . . 6 Utility 12 | . . . . . 3 . . . 9 Weapon 11 | . . 1 . . 7 1 . . 2 Highest Loss Streak 6 | . . 1 . . 6 1 . . 5 To Critical Strikes . | . . . . . . . . . . Average Backups 17 | 4 8 9 9 16 17 18 18 19 17 Power 1 | 1 1 1 1 1 1 2 2 2 1 Propulsion 1 | 1 1 2 3 2 3 1 1 1 . Utility 6 | . 3 2 2 6 6 6 6 6 6 Weapon 6 | 2 2 3 3 5 4 8 8 8 7 Tool/Special . | . . . . . . . . . . Unused Backups 49 | 7 4 5 1 1 6 3 1 . 21 Power 3 | 1 . 1 . 1 . . . . . Propulsion 12 | 3 . . . . 5 1 . . 3 Utility 18 | 1 2 2 1 . . 2 . . 10 Weapon 14 | 2 2 2 . . . . 1 . 7 Tool/Special 2 | . . . . . 1 . . . 1 Average Slot Usage (%) 94 | . 100 97 100 93 85 99 100 100 89 Engine 8 | . 14 14 14 13 3 8 9 9 5 Treads 21 | . 14 14 14 14 19 27 27 27 19 Wheel 3 | . 14 14 14 14 1 . . . . Device 16 | . 14 14 14 10 16 24 18 18 15 Storage 9 | . 14 14 14 14 9 9 9 9 6 Hackware 9 | . . . . . 8 9 9 9 17 Protection 4 | . . . . . 3 2 9 9 7 Energy Gun 9 | . . . . 9 8 12 18 17 4 Ballistic Gun 4 | . 28 17 14 13 3 . . . 5 Launcher 1 | . . 8 14 3 . . . . . Peak Build Rating 71 | 7 8 9 9 19 35 40 39 40 71 Average Rating 34 | 6 7 8 9 15 26 35 38 39 54 On Entrance 20 | 6 7 8 9 9 19 32 38 39 38 Avg Prop Armor Cover (%) 12 | 12 12 11 11 12 15 . . . 6 Naked Turns . | . . . . . . . . . . Heaviest Build 83 | 13 20 21 51 57 61 57 57 58 83 Greatest Support 87 | 16 16 16 16 16 69 69 68 67 87 Greatest Overweight (x) 18 | . 1 1 3 3 18 1 . . 13 Average Overweight (x) . | . . 1 1 2 . . . . . Largest Inventory Capacity 20 | 8 10 10 20 20 20 20 20 20 20 Average Capacity 19 | 8 8 10 11 20 20 20 20 20 20 Most Carried 20 | 6 10 10 11 20 20 20 20 20 20 Average Carried 18 | 4 8 9 9 17 18 19 19 19 18 Final Capacity 20 | 8 10 10 20 20 20 20 20 20 20 Final Carried 20 | 6 10 10 10 20 20 20 20 20 14 Class Distribution -------------------- 65% | Mutant 13% | Scavenger-Mutant 13% | Hacker-Mutant 5% | Hacker-Skirmisher Dominant Class ---------------- Mutant | -10/Materials Mutant | -10/Mines Mutant | -10/Exiles Mutant | -9/Mines Mutant | -8/Materials Scavenger-Mutant | -8/Storage Mutant | -8/Recycling Mutant | -8/Scraptown Hacker-Mutant | -6/Factory Resources | -11 -10 -10 -10 -9 -8 -8 -8 -8 -6 ----------- Run | Yrd Mat Min Exi Min Mat Sto Rec Scr Fac Matter Collected 2417 | 294 70 38 . 145 850 235 20 . 765 Remotely . | . . . . . . . . . . Salvage Created 3928 | 134 103 . . 102 1166 900 149 . 1374 Parts 186 | 15 8 . . 3 63 34 7 . 56 Haulers Intercepted 10 | . 2 . . . 5 2 . . 1 Recyclers Shooed 8 | 1 . . . . 4 . . . 3 Parts Field Recycled . | . . . . . . . . . . Retrieved Matter . | . . . . . . . . . . Parts Self-Destructed . | . . . . . . . . . . Prevented . | . . . . . . . . . . Parts Restored . | . . . . . . . . . . Kills | -11 -10 -10 -10 -9 -8 -8 -8 -8 -6 ------- Run | Yrd Mat Min Exi Min Mat Sto Rec Scr Fac Combat Hostiles Destroyed 56 | . . . . 4 22 13 . . 17 Melee 1 | . . . . . . . . . 1 Guns 31 | . . . . 1 7 11 . . 12 Cannons 9 | . . . . . 9 . . . . AOE 9 | . . . . 3 6 . . . . Classes Destroyed 15 | 3 1 . . 3 5 . . . 3 Worker 8 | 1 . . . . 3 2 . . 2 Builder 2 | . . . . . 2 . . . . Tunneler 6 | 3 . . . . 3 . . . . Hauler 10 | . 2 . . . 5 2 . . 1 Recycler 13 | 1 . . . . 3 4 2 . 3 Operator 1 | . . . . . . . . . 1 Watcher 4 | . . . . . 2 . . . 2 Swarmer 11 | . . . . . 7 4 . . . Saboteur 1 | . . . . . . . . . 1 Grunt 21 | . . . . 2 11 7 . . 1 Duelist 2 | . . . . 1 1 . . . . Sentry 8 | . . . . . 2 2 . . 4 Hunter 7 | . . . . . 1 . . . 6 Programmer 5 | . . . . . . . . . 5 Assembled 1 | . . . . 1 . . . . . Best Kill Streak 8 | 3 2 . . 3 8 4 2 . 3 Combat Bots Only 6 | . . . . 3 6 3 . . 3 Max Kills in Single Turn 3 | 1 1 . . 2 3 2 1 . 2 Gunslinging 1 | . . . . . . 1 . . . Exploded 3 | . . . . 2 3 . . . . Melee 1 | . . . . . . . . . 1 Uniques/NPCs Destroyed . | . . . . . . . . . . Combat | -11 -10 -10 -10 -9 -8 -8 -8 -8 -6 -------- Run | Yrd Mat Min Exi Min Mat Sto Rec Scr Fac Hostile Shots Fired 702 | . 1 4 . 18 234 51 . . 394 Missed 211 | . . . . 5 70 15 . . 121 Hits 491 | . 1 4 . 13 164 36 . . 273 Melee 11 | . . . . . 3 . . . 8 Projectile 480 | . 1 4 . 13 161 36 . . 265 AOE 5 | . . 4 . . 1 . . . . Critical Strikes 12 | . . . . 1 2 . . . 9 Part Disruptions 3 | . . . . . . . . . 3 Damage Taken 7119 | . 11 179 . 188 2334 525 . . 3882 Core 1437 | . . . . 57 419 100 . . 861 Absorbed by Shields . | . . . . . . . . . . Core Remaining (%) 60 | 100 . . . 77 . . . 5 . Volleys Fired 346 | 13 6 6 . 9 124 71 5 5 107 Largest 2 | 2 2 1 . 2 2 2 2 1 2 Hottest 161 | 40 40 20 . 75 161 161 122 61 122 Shots Fired 604 | 26 12 6 . 14 198 127 10 5 206 Gun 500 | 26 12 6 . 10 117 108 10 5 206 Cannon 66 | . . . . . 66 . . . . Launcher 16 | . . . . 4 12 . . . . Special 22 | . . . . . 3 19 . . . Kinetic 297 | 26 12 6 . 5 108 . . . 140 Thermal 259 | . . . . . 51 127 10 5 66 Explosive 16 | . . . . 4 12 . . . . Electromagnetic 32 | . . . . 5 27 . . . . Robot Hit Streak 29 | 4 4 2 . 7 8 29 19 . 24 Robot Miss Streak 5 | 4 2 1 . 2 5 2 . . 4 Penetration Max . | . . . . . . . . . . Secondary Targets 5 | . . . . . 1 2 . . 2 Max Gunslinging Chain 1 | . . . . . 1 1 . . 1 Shots Hit Robots 396 | 13 7 4 . 7 110 81 10 . 164 Core Hits 171 | 6 4 . . 8 69 29 2 . 53 Critical Kills 1 | . . . . . . . . . 1 Critical Parts Destroyed 1 | . . . . . . . . . 1 Critical Strikes 19 | . . . . . 5 6 1 . 7 Burn 15 | . . . . . 3 6 1 . 5 Destroy 1 | . . . . . . . . . 1 Blast 1 | . . . . . 1 . . . . Corrupt 1 | . . . . . 1 . . . . Smash 1 | . . . . . . . . . 1 Melee Attacks 26 | . . . . . . . . . 26 Impact 26 | . . . . . . . . . 26 Slashing . | . . . . . . . . . . Piercing . | . . . . . . . . . . Sneak Attacks . | . . . . . . . . . . Combat Hostiles . | . . . . . . . . . . Follow-up Attacks . | . . . . . . . . . . Damage Inflicted 8669 | 165 96 67 . 326 2637 1377 170 . 3831 Guns 6812 | 165 96 67 . 108 1360 1283 170 . 3563 Cannons 762 | . . . . . 762 . . . . Explosions 709 | . . . . 218 491 . . . . Melee 251 | . . . . . . . . . 251 Ramming 39 | . . . . . . 22 . . 17 Kinetic 4055 | 165 96 67 . 40 1132 . . . 2555 Thermal 3346 | . . . . . 813 1355 170 . 1008 Explosive 630 | . . . . 218 412 . . . . Electromagnetic 348 | . . . . 68 280 . . . . Impact 251 | . . . . . . . . . 251 Slashing . | . . . . . . . . . . Piercing . | . . . . . . . . . . Highest Corruption 10 | . . . . . . . . . 10 Average Corruption 6 | . . . . . . . . . 6 Corruption Purged 4 | . . . . . . . . . 4 Corruption Blocked . | . . . . . . . . . . Effects 42 | . . . . . . . . . 42 Message Errors 11 | . . . . . . . . . 11 Matter Fused 9 | . . . . . . . . . 9 Heat Flow Errors 6 | . . . . . . . . . 6 Energy Discharges 7 | . . . . . . . . . 7 Data Loss (minor) 5 | . . . . . . . . . 5 Data Loss (major) 1 | . . . . . . . . . 1 Misfires 2 | . . . . . . . . . 2 Weapon Failures 1 | . . . . . . . . . 1 Overload Shots . | . . . . . . . . . . Overflow Damage 152 | . . . . . 1 2 . . 149 Projectiles . | . . . . . . . . . . Explosions 1 | . . . . . 1 . . . . Melee 151 | . . . . . . 2 . . 149 Knockbacks 10 | . . . . . 5 . . . 5 Impact 4 | . . . . . . . . . 4 Kinetic 5 | . . . . . 5 . . . . Secondary 1 | . . . . . . . . . 1 Self-Inflicted Damage 156 | . . . . . 153 . . . 3 Shots 9 | . . . . . 9 . . . . Rammed 5 | . . . . . . 1 . . 4 Targets Rammed 5 | . . . . . . 1 . . 4 Kicked . | . . . . . . . . . . Crushed . | . . . . . . . . . . Highest Temperature 276 | 6 6 . . 105 117 4 . . 276 Average Temperature 55 | 6 6 . . 52 32 4 . . 87 Received Heat Transfer 1500 | . 6 . . 48 759 243 . . 444 Effects 1 | . . . . . . . . . 1 Energy Bleed 1 | . . . . . . . . . 1 Siege Activations . | . . . . . . . . . . Martial Activations . | . . . . . . . . . . Shielding Activations . | . . . . . . . . . . Robots Disrupted . | . . . . . . . . . . Combat Hostiles . | . . . . . . . . . . Robots Corrupted 2 | . . . . . . . . . 2 Combat Hostiles 2 | . . . . . . . . . 2 Parts Fried 2 | . . . . . 2 . . . . Impact Corruptions 8 | . . . . . . 1 . . 7 Robots Melted 5 | . . . . . . 2 . . 3 Combat Hostiles 4 | . . . . . . 2 . . 2 Parts Melted 23 | . . . . . 2 5 1 . 15 Heat Transferred 8218 | . . . . . 1926 3406 444 . 2442 Parts Sabotaged 2 | . . . . . . . . . 2 Parts Stolen . | . . . . . . . . . . Parts Stripped . | . . . . . . . . . . Power Chain Reactions 1 | . . . . . 1 . . . . Alert | -11 -10 -10 -10 -9 -8 -8 -8 -8 -6 ------- Run | Yrd Mat Min Exi Min Mat Sto Rec Scr Fac Maximum Alert Level 1 | . . . . . 1 . . . . Low Security (%) 93 | 100 100 100 . 100 63 100 100 . 100 Level 1 6 | . . . . . 36 . . . . Level 2 . | . . . . . . . . . . Level 3 . | . . . . . . . . . . Level 4 . | . . . . . . . . . . Level 5 . | . . . . . . . . . . High Security . | . . . . . . . . . . Max Security . | . . . . . . . . . . Peak Influence 281 | 5 7 . . 88 281 170 93 . 133 Initial 63 | . . . . . . 62 63 . . Average 51 | 1 . . . 8 164 28 15 . 44 Influence Increases 2109 | 25 14 . . 118 769 451 152 . 580 Destroy 0b10 Robot/C 1100 | . . . . 60 440 260 . . 340 Destroy 0b10 Robot/NC 220 | 25 10 . . . 90 40 10 . 45 Destroy Leader 288 | . 4 . . 10 94 44 . . 136 Successful Hack 112 | . . . . . 32 27 22 . 31 Select Force Hacks 120 | . . . . . . . 120 . . Disable Machine 105 | . . . . . 45 60 . . . Destroy Structure 89 | . . . . 18 53 5 . . 13 Lose Combat Pursuer 75 | . . . . 30 15 15 . . 15 Influence Decreases 2064 | 25 14 . . 118 620 438 314 . 535 Entered New Map 186 | . . . . . . 87 99 . . Time Decay 1518 | 25 14 . . 118 450 331 215 . 365 Lost Part 360 | . . . . . 170 20 . . 170 Squads Dispatched 19 | . 3 . . . 3 3 . . 10 Investigation 6 | . 2 . . . 2 . . . 2 Extermination 4 | . . . . . . . . . 4 Reinforcement 7 | . 1 . . . 1 3 . . 2 Assault 2 | . . . . . . . . . 2 Garrison . | . . . . . . . . . . Intercept . | . . . . . . . . . . Searches Triggered . | . . . . . . . . . . Construction Impeded . | . . . . . . . . . . Haulers Reinforced 1 | . . . . . . . . . 1 Active Scanning Responses . | . . . . . . . . . . Cargo Convoy Interrupts 1 | . . . . . . . . . 1 Stealth | -11 -10 -10 -10 -9 -8 -8 -8 -8 -6 --------- Run | Yrd Mat Min Exi Min Mat Sto Rec Scr Fac Distress Signals 7 | . . . . . 4 2 . . 1 Communications Jammed . | . . . . . . . . . . Distress Signals . | . . . . . . . . . . Times Spotted 109 | . 9 2 . 6 40 16 . . 36 Peak Tracking Total 9 | . 3 2 . 3 6 4 . . 9 Tactical Retreats 5 | . . . . 2 1 1 . . 1 Traps | -11 -10 -10 -10 -9 -8 -8 -8 -8 -6 ------- Run | Yrd Mat Min Exi Min Mat Sto Rec Scr Fac Traps Triggered 6 | . 1 . . 3 1 . . . 1 Indirectly . | . . . . . . . . . . Trap Hack Attempts . | . . . . . . . . . . Triggered . | . . . . . . . . . . Disarmed . | . . . . . . . . . . Reprogrammed . | . . . . . . . . . . Reused . | . . . . . . . . . . Traps Extracted . | . . . . . . . . . . Installed . | . . . . . . . . . . Triggered . | . . . . . . . . . . Machines | -11 -10 -10 -10 -9 -8 -8 -8 -8 -6 ---------- Run | Yrd Mat Min Exi Min Mat Sto Rec Scr Fac Machines Disabled 7 | . . . . . 3 4 . . . Max in Single Turn 1 | . . . . . 1 1 . . . Garrison Access 1 | . . . . . . . . . 1 Machines Repaired . | . . . . . . . . . . Machines Dismantled . | . . . . . . . . . . Machines Sabotaged . | . . . . . . . . . . Overloaded Fab Kills . | . . . . . . . . . . Hacking | -11 -10 -10 -10 -9 -8 -8 -8 -8 -6 --------- Run | Yrd Mat Min Exi Min Mat Sto Rec Scr Fac Machines Accessed 26 | . 1 . 2 1 3 5 8 1 5 Terminals 14 | . 1 . . . 3 5 4 . 1 Fabricators 2 | . . . . . . . . . 2 Repair Stations . | . . . . . . . . . . Recycling Units 6 | . . . . . . . 4 . 2 Scanalyzers . | . . . . . . . . . . Garrison Access . | . . . . . . . . . . Total Hacks 77 | . 4 . 2 1 12 18 20 9 11 Successful 52 | . 2 . 2 1 7 9 13 9 9 Failed 25 | . 2 . . . 5 9 7 . 2 Catastrophic 4 | . . . . . 1 1 1 . 1 Database Lockouts . | . . . . . . . . . . Manual 26 | . 4 . 1 . 7 5 4 . 5 Terminals 47 | . 4 . . . 12 18 11 . 2 Fabricators 6 | . . . . . . . . . 6 Repair Stations . | . . . . . . . . . . Recycling Units 12 | . . . . . . . 9 . 3 Scanalyzers . | . . . . . . . . . . Garrison Access . | . . . . . . . . . . Terminal Hacks 29 | . . . 2 1 5 8 4 9 . Record 10 | . . . 1 . . . . 9 . Part Schematic 4 | . . . . . . 3 1 . . Robot Schematic 1 | . . . . . . . 1 . . Robot Analysis 2 | . . . . . . 2 . . . Prototype ID Bank 1 | . . . . . . . 1 . . Open Door 2 | . . . . 1 . 1 . . . Branch Access Points 2 | . . . . . 1 1 . . . Terminal Index 1 | . . . . . 1 . . . . Alert Level 1 | . . . . . . 1 . . . Locate Traps 1 | . . . . . 1 . . . . Assault Status 1 | . . . . . 1 . . . . Hauler Manifests 1 | . . . . . 1 . . . . Registered Prototypes 1 | . . . . . . . 1 . . Proto ID Catalog 1 | . . . 1 . . . . . . Fabricator Hacks 4 | . . . . . . . . . 4 Network Status 1 | . . . . . . . . . 1 Load Schematic 1 | . . . . . . . . . 1 Build 2 | . . . . . . . . . 2 Repair Station Hacks . | . . . . . . . . . . Recycling Unit Hacks 6 | . . . . . . . 5 . 1 Report Inventory 1 | . . . . . . . . . 1 Retrieve Components 5 | . . . . . . . 5 . . Scanalyzer . | . . . . . . . . . . Garrison Access Hacks . | . . . . . . . . . . Unauthorized Hacks 11 | . 2 . . . 2 1 4 . 2 Terminals 6 | . 2 . . . 2 1 . . 1 Assimilate 1 | . . . . . . . . . 1 Botnet 3 | . 1 . . . 1 1 . . . Operators 2 | . 1 . . . 1 . . . . Fabricators 1 | . . . . . . . . . 1 Recompile 1 | . . . . . . . . . 1 Repair Stations . | . . . . . . . . . . Recycling Units 4 | . . . . . . . 4 . . Tunnel 4 | . . . . . . . 4 . . Scanalyzers . | . . . . . . . . . . Garrison Access . | . . . . . . . . . . Data Cores Recovered 1 | . . . . . 1 . . . . Used . | . . . . . . . . . . Hacking Detections 14 | . 1 . . . 3 4 3 . 3 Full Trace Events 4 | . . . . . 1 . 2 . 1 Feedback Events 1 | . . . . . . . . . 1 Corruption 1 | . . . . . . . . . 1 Feedback Blocked . | . . . . . . . . . . Robot Schematics Acquired 1 | . . . . . . . 1 . . Robots Built . | . . . . . . . . . . Authchips . | . . . . . . . . . . Time . | . . . . . . . . . . Total Robot Build Rating . | . . . . . . . . . . Part Schematics Acquired 4 | . . . . . . 3 1 . . Parts Built 3 | . . . . . . . . . 3 Authchips . | . . . . . . . . . . Time 192 | . . . . . . . . . 192 Total Part Build Rating 24 | . . . . . . . . . 24 Part Studies Acquired . | . . . . . . . . . . Parts Repaired . | . . . . . . . . . . Time . | . . . . . . . . . . Parts Recycled . | . . . . . . . . . . Recycled Matter . | . . . . . . . . . . Retrieved Matter . | . . . . . . . . . . Retrieved Components 8 | . . . . . . . 8 . . Parts Scanalyzed . | . . . . . . . . . . Part Schematics Acquired . | . . . . . . . . . . Parts Damaged . | . . . . . . . . . . Bothacking | -11 -10 -10 -10 -9 -8 -8 -8 -8 -6 ------------ Run | Yrd Mat Min Exi Min Mat Sto Rec Scr Fac Used RIF Installer . | . . . . . . . . . . Robots Hacked . | . . . . . . . . . . Non-combat . | . . . . . . . . . . Combat . | . . . . . . . . . . Robot Hacks Applied . | . . . . . . . . . . Relay Couplers Released . | . . . . . . . . . . Fabnet Peak Effective % . | . . . . . . . . . . Robots Rewired . | . . . . . . . . . . Allies Hacked . | . . . . . . . . . . Hacks Repelled . | . . . . . . . . . . Allies | -11 -10 -10 -10 -9 -8 -8 -8 -8 -6 -------- Run | Yrd Mat Min Exi Min Mat Sto Rec Scr Fac Total Allies . | . . . . . . . . . . Largest Group . | . . . . . . . . . . Highest-Rated Group . | . . . . . . . . . . Highest-Rated Ally . | . . . . . . . . . . Total Orders . | . . . . . . . . . . Ally Attacks . | . . . . . . . . . . Total Damage . | . . . . . . . . . . Kills . | . . . . . . . . . . Allies Corrupted . | . . . . . . . . . . Allies Melted . | . . . . . . . . . . Intel | -11 -10 -10 -10 -9 -8 -8 -8 -8 -6 ------- Run | Yrd Mat Min Exi Min Mat Sto Rec Scr Fac Active Infowar (turns) 3745 | 59 248 186 327 728 1380 62 . . 755 IFF 755 | . . . . . . . . . 755 Seismic 2990 | 59 248 186 327 728 1380 62 . . . Robot Analysis Total 2 | . . . . . . 2 . . . Derelict Logs Recovered 1 | . . . . 1 . . . . . Drone Launches . | . . . . . . . . . . Drone Recoveries . | . . . . . . . . . . Exploration | -11 -10 -10 -10 -9 -8 -8 -8 -8 -6 ------------- Run | Yrd Mat Min Exi Min Mat Sto Rec Scr Fac Turns Passed 9672 | 120 248 186 327 1117 1380 1564 838 1699 2193 Spaces Moved 4877 | 51 177 115 272 697 545 464 539 1114 903 Core 3 | . . . . . 2 . . . 1 Treads 3258 | . . . . . 396 464 539 1114 745 Legs 50 | . . . . . 50 . . . . Wheels 1409 | 51 177 115 272 697 97 . . . . Hover 157 | . . . . . . . . . 157 Flight . | . . . . . . . . . . Fastest Speed 100 | 100 100 115 115 130 145 155 150 150 106 Average Speed 148 | 100 106 115 118 144 169 155 151 151 154 Slowest Speed 950 | 100 115 115 145 145 950 232 155 153 700 Overloaded Moves . | . . . . . . . . . . Propulsion Burnouts . | . . . . . . . . . . Robots Hopped . | . . . . . . . . . . Potential Cave-ins . | . . . . . . . . . . Cave-ins Triggered . | . . . . . . . . . . Exploration Rate (%) 46 | 3 26 16 62 95 50 50 82 57 23 Regions Visited 9 Branch Regions 6 Pre-discovered Areas 7 | . . . 1 1 . . 4 1 . Known Exits Taken 2 | . . . . . 1 1 . . . Unknown Exits Taken 7 | 1 1 1 1 1 . . 1 1 . Scrap Searched 8 | . . . . 2 . . . 6 . Spaces Dug 19 | . . . . . 2 4 . . 13 Terrain Destroyed 94 | . . . . 29 47 5 . . 13 Melee 13 | . . . . . . . . . 13 Projectile 9 | . . . . . 4 5 . . . AOE 72 | . . . . 29 43 . . . . Terrain Rammed . | . . . . . . . . . . Walls Destroyed . | . . . . . . . . . . Machines Disabled . | . . . . . . . . . . Actions | -11 -10 -10 -10 -9 -8 -8 -8 -8 -6 --------- Run | Yrd Mat Min Exi Min Mat Sto Rec Scr Fac Total 6636 | 95 226 164 278 793 800 1142 549 1125 1464 Wait 1080 | 23 28 34 . 64 34 555 . . 342 Move 4868 | 50 176 114 271 696 544 463 538 1113 903 Hop . | . . . . . . . . . . Pick Up 95 | 3 8 4 2 13 30 11 2 2 20 Fast Attach 35 | 1 . 1 . 2 9 8 . . 14 Attach 40 | 2 . . . 3 24 2 . . 9 Detach 4 | . . . . 1 3 . . . . Swap 46 | . 2 1 2 2 12 11 2 2 12 Drop 91 | 3 6 4 3 3 20 20 2 3 27 Fire 346 | 13 6 6 . 9 124 71 5 5 107 Melee 26 | . . . . . . . . . 26 Ram 3 | . . . . . . . . . 3 Kick . | . . . . . . . . . . Crush 2 | . . . . . . 1 . . 1 Escape Stasis . | . . . . . . . . . . Rewire . | . . . . . . . . . . Trap . | . . . . . . . . . . Miscellaneous . | . . . . . . . . . . Route ------- -11/Scrapyard -10/Materials (discovered 2 exits: [*Mat] / [*Min]) -10/Mines -10/Exiles -9/Mines (discovered 2 exits: *Mat x2) -8/Materials (discovered 2 exits: [*Fac] / *Sto) -8/Storage -8/Recycling -8/Scraptown -6/Factory History --------- Turn | Location | Event 17 | -11/Scrapyard | Discovered new exit (range 3) 121 | -11/Scrapyard | Entered Materials 172 | -10/Materials | Met 8R-AWN 178 | -10/Materials | Discovered new exit (range 15) 315 | -10/Materials | Build established: Mutant 345 | -10/Materials | Discovered new exit (range 15) 369 | -10/Materials | Entered Mines 371 | -10/Mines | Followed 8R-AWN into the Mines 374 | -10/Mines | Assembled infested the area 548 | -10/Mines | Discovered new exit (range 5) 555 | -10/Mines | Entered Exiles 584 | -10/Exiles | Welcomed by 8R-AWN 607 | -10/Exiles | Met EX-HEX 645 | -10/Exiles | Met EX-BIN 691 | -10/Exiles | Aligned with FarCom system 692 | -10/Exiles | Given EX-Vault access code 719 | -10/Exiles | Opened EX-Vault 728 | -10/Exiles | Found Modified TNC 754 | -10/Exiles | Warned to stay clear of 0b10 Research branches 789 | -10/Exiles | Met EX-DEC 797 | -10/Exiles | Learned location of Zion (-7) 863 | -10/Exiles | Discovered new exit (range 14) 882 | -10/Exiles | Left Exiles lab with Modified TNC 882 | -10/Exiles | Entered Mines 928 | -9/Mines | Found a Scrap Suit stashed away for nefarious purposes 931 | -9/Mines | Found Scrap Suit 1091 | -9/Mines | Discovered new exit (range 6) 1154 | -9/Mines | Met a Derelict who couldn't figure out how to use a Trap Extractor 1406 | -9/Mines | Discovered new exit (range 6) 1557 | -9/Mines | Found a damaged Exp. Sensor Array with a note attached 1561 | -9/Mines | Found Prototype Device 1663 | -9/Mines | Excavation squad dispatched 1663 | -9/Mines | A large section of the Mines collapsed 1999 | -9/Mines | Entered Materials 1999 | -8/Materials | Evolved 4 slots: Propulsion x1, Utility x3 2335 | -8/Materials | Lost 5 parts (2n1u2w) 2439 | -8/Materials | Build established: Scavenger-Mutant 2486 | -8/Materials | Core integrity fell below 50% 2536 | -8/Materials | Lost 6 parts (2n2u2w) 2757 | -8/Materials | Build established: Mutant 3070 | -8/Materials | Discovered new exit (range 3) 3367 | -8/Materials | Discovered new exit (range 6) 3374 | -8/Materials | Identified exit to Storage 3379 | -8/Materials | Entered Storage 3474 | -8/Storage | Core integrity fell below 20% 3795 | -8/Storage | Identified exit to Recycling 4043 | -8/Storage | Build established: Scavenger-Mutant 4835 | -8/Storage | Build established: Mutant 4937 | -8/Storage | Used back door to open Recycling access 4943 | -8/Storage | Entered Recycling 5285 | -8/Recycling | Scanned before Scraplab entrance 5744 | -8/Recycling | Entered Scraplab 5756 | -8/Recycling | Discovered new exit (range 2) 5781 | -8/Recycling | Entered Scraptown 6377 | -8/Scraptown | Visited Junk Repository 6413 | -8/Scraptown | Visited CPS Storage 6633 | -8/Scraptown | Heard Great Nut preacher, LISTEN AND RECITE! 6743 | -8/Scraptown | Visited Bundlers 6858 | -8/Scraptown | Visited Awakened 6939 | -8/Scraptown | Visited SPCMW 7028 | -8/Scraptown | Visited Assassins FH 7100 | -8/Scraptown | Discovered new exit (range 5) 7247 | -8/Scraptown | Turned away by UFD registrar 7480 | -8/Scraptown | Entered Factory 7480 | -6/Factory | Evolved 4 slots: Propulsion x1, Utility x3 8003 | -6/Factory | Build established: Hacker-Mutant 8093 | -6/Factory | Fabricated Hyp. Railgun (x2) 8300 | -6/Factory | Fabricated Antigrav Array (x1) 8741 | -6/Factory | Cargo convoy interrupted 9164 | -6/Factory | Lost 4 parts (2n2u) 9256 | -6/Factory | Lost 3 parts (2n1w) 9622 | -6/Factory | System corruption reached 10% 9633 | -6/Factory | Lost 5 parts (4u1w) 9663 | -6/Factory | Core integrity fell below 50% 9670 | -6/Factory | Core integrity fell below 20% 9673 | -6/Factory | Destroyed by L-41 Fighter with Axe Last Messages --------------- payload. 09648_ G-67 Veteran unfolds itself. 09648_ G-50 Soldier unfolds itself. 09648_ E-15 Imp unfolds itself. 09648_ K-01 Serf cleans the Construction Platform. 09652_ System corrupted: Component data lost. 09652_ K-01 Serf collects debris. 09652_ Acquired 51 matter. 09658_ Gravmag Array destroyed. 09658_ Hvy. Machine Gun blown off. 09658_ Impact Mace blown off. 09658_ E-15 Imp destroyed. 09660_ Antigrav Array destroyed. 09664_ Hacking Suite destroyed. 09664_ Hacking Suite severed. 09666_ R-10 Processor collects Cesium-ion Thruster. 09667_ System Shield severed. 09673_ R-10 Processor collects Hvy. Machine Gun. Map ----- +----------------------------------------------------+ | ?????????????????????????????????????????????????? | | ?????????????????????????????????????????????????? | | ?????????????????????????????????????????????????? | | ?????????????????????????????????????????????????? | | ?????????????????????????????????????????????????? | | ?????????????????????????????????????????????????? | | ?????????????????????????????????????????????????? | | ?????????????????????????????????????????????????? | | ?????????????????????????????????????????????????? | | ?????????????????????????????????????????????????? | | ?????????????????????????????????????????????????? | | ?????????????????????????????????????????????????? | | ?????????????????????????????????????????????????? | | ?????????????????????????????????????????????????? | | ???????????????????????????????????###########???? | | ???????????????????????????????????# #???? | | ???????????????????????????????????#] #???? | | ???????????????????????????????????# """ #???? | | ???????????????????????????????????# ! """"" ##### | | ???????????????????????????????????# """"" # | | ?????????????????????????########### # | | ?????????????????????????# """"""" + """ # | | ?????????????????????????# """"""" # ! """"" + | | ?????????????????????????# """"""" # """"" # | | ??????????????# ######%""""""" # # | | ??????????????# g%@gg #[ """ ### | | ??????????????# k ######lR ug # """"" #?#/ | | ?????????????????????????# ggg # """"" #?# | | ?????????????????????????# ! #! #?# | | ?????????????????????????#####+##### ] #?# | | ???????????????????????????? ?# #?# | | ??????????????????????????? % ############## | | ?????????????????????????? | | ???????????????????????? ###????## | | ??????????????????????? #???????# | | ??????????????????????####### #???????# | | ????????????????????????????# #???????# #### | | ???????????????Y????????????# #???????# ???#"" | | ????????????????????????????+ #???????#????#"R | | ????????????????????????????# #????????????#"" | | ????????????????????????????# #????????????#"" | | ?????????????????????????????% #????????????# | | ????????????????????????????? #????????????# | | ????????????????????????????? ??????????????# | | ???????????????????????????????????????????????# | | ???????????????????????????????????????????????# | | ???????????????????????????????????????????????# | | ???????????????????????????????????????????????# | | ???????????????????????????????????????????????### | | ?????????????????????????????????????????????????? | +----------------------------------------------------+ Best States ------------- Heat Dissipation 84 Energy Generation 16 Energy Capacity 290 Matter Stores 300 Matter Capacity 300 Sight Range 16 Terrain Scan Density 10 Armor Coverage 675 Evasion (%) 40 Recoil Reduction 4 Kinecelleration 30 Offensive Hacking 30 Defensive Hacking 10 Authchip Count 3 Trap Extractor Capacity 6 Item Schematics ----------------- Adv. Terrain Scan Processor | -8/Storage | Hacked Nuclear Pulse Thruster | -8/Storage | Hacked Spear | -8/Storage | Hacked System Shield | -8/Recycling | Hacked Robot Schematics ------------------ W-25 Informer | -8/Recycling | Hacked Fabricated ------------ Hyp. Railgun | x2 | -6/Factory | Preloaded Antigrav Array | x1 | -6/Factory | Preloaded Repaired ---------- Nothing Studied --------- None Alien Tech Used ----------------- None Achievements -------------- Follow The Leader Challenges ------------ None Game ------ Seed ArcScrapoidFalx Manual? 0 Play Time 01:25:14 Cumulative 88.9 hours Start 2026.04.14 @ 07:14:15 End 2026.04.14 @ 14:13:47 Sessions 3 Manual Loads 0 Difficulty Rogue Special Mode None Game No. 73 Rogue 63 Adventurer 9 Explorer 1 Win Type - Total 1 Types 1/0/0/0/0/0/0/0/0/0 Lore% 42 Gallery% 40 Achievement% 33 Wizard Run 0 Options --------- Layout 2 ASCII 0 Keyboard 0 Movement Mouse Keybinds 0 Fullscreen 1 Font 48/Terminus Map View 50x44 Zoom Use 0% Tactical HUD 1 Map Filters NONE Filters NONE Steam 1 RUN: 828ee181-5485-47e9-921f-fa25f216a854